[Event "*** Qualifier 4: Titled Tuesday 3|2 Blitz"]
[Site "Chess.com"]
[Date "2017.04.25"]
[Round "1"]
[White "chesstatour"]
[Black "DariuszMikrut"]
[Result "0-1"]
[WhiteElo "1886"]
[BlackElo "2406"]
[TimeControl "180+2"]
[EndTime "13:08:52 PDT"]
[Termination "DariuszMikrut won by resignation"]

1. e4 {[%clk 0:03:02]} 1... c5 {[%clk 0:03:00.4]} 2. Nf3 {[%clk 0:03:02.7]} 2...
d6 {[%clk 0:03:00.6]} 3. d4 {[%clk 0:03:04]} 3... cxd4 {[%clk 0:03:01.5]} 4.
Nxd4 {[%clk 0:03:05.9]} 4... Nf6 {[%clk 0:03:02.6]} 5. f3 {[%clk 0:03:06.2]}
5... e5 {[%clk 0:03:01.7]} 6. Nb3 {[%clk 0:03:06.7]} 6... d5 {[%clk 0:03:02]} 7.
exd5 {[%clk 0:03:04.6]} 7... Nxd5 {[%clk 0:02:57.5]} 8. c4 {[%clk 0:03:04]} 8...
Bb4+ {[%clk 0:02:57.1]} 9. Bd2 {[%clk 0:02:49.9]} 9... Ne3 {[%clk 0:02:53.1]}
10. Qc1 {[%clk 0:02:50.2]} 10... Bxd2+ {[%clk 0:02:49.5]} 11. N3xd2 {[%clk
0:02:46.2]} 11... Nc6 {[%clk 0:02:42.3]} 12. Na3 {[%clk 0:02:17]} 12... Bf5
{[%clk 0:02:36.6]} 13. Qc3 {[%clk 0:02:09.6]} 13... Qd4 {[%clk 0:02:31.2]} 14.
Nb3 {[%clk 0:01:49.7]} 14... Qxc3+ {[%clk 0:02:29.4]} 15. bxc3 {[%clk
0:01:50.3]} 15... O-O-O {[%clk 0:02:28.6]} 16. g3 {[%clk 0:01:10.2]} 16... e4
{[%clk 0:02:24.1]} 17. f4 {[%clk 0:00:46.3]} 17... a6 {[%clk 0:02:13.4]} 18. h3
{[%clk 0:00:45]} 18... h5 {[%clk 0:02:13]} 19. Be2 {[%clk 0:00:42]} 19... Be6
{[%clk 0:01:58.1]} 20. Kf2 {[%clk 0:00:31]} 20... Nf5 {[%clk 0:01:57.6]} 21.
Rad1 {[%clk 0:00:21.6]} 21... Kc7 {[%clk 0:01:54.5]} 22. g4 {[%clk 0:00:16.9]}
22... hxg4 {[%clk 0:01:50.9]} 23. hxg4 {[%clk 0:00:17.4]} 23... Rxh1 {[%clk
0:01:50.7]} 24. Rxh1 {[%clk 0:00:18.1]} 24... Nfe7 {[%clk 0:01:46.5]} 25. f5
{[%clk 0:00:17.9]} 25... Bc8 {[%clk 0:01:47.3]} 26. Rh7 {[%clk 0:00:18.2]} 26...
Rg8 {[%clk 0:01:47.4]} 27. f6 {[%clk 0:00:15.1]} 27... gxf6 {[%clk 0:01:45.9]}
28. Rxf7 {[%clk 0:00:15.8]} 28... Bxg4 {[%clk 0:01:46.5]} 29. Nd4 {[%clk
0:00:12.1]} 29... Bxe2 {[%clk 0:01:41]} 30. Kxe2 {[%clk 0:00:12.1]} 30... Rg2+
{[%clk 0:01:35.8]} 31. Ke3 {[%clk 0:00:13.3]} 31... Rxa2 {[%clk 0:01:32.3]} 32.
Nac2 {[%clk 0:00:13.7]} 32... Kd7 {[%clk 0:01:24.7]} 33. Nxc6 {[%clk 0:00:13]}
33... bxc6 {[%clk 0:01:24.4]} 34. Nd4 {[%clk 0:00:13.9]} 34... c5 {[%clk
0:01:16.9]} 35. Nf5 {[%clk 0:00:12.4]} 35... Ke6 {[%clk 0:01:18.1]} 36. Rxe7+
{[%clk 0:00:13.2]} 36... Kxf5 {[%clk 0:01:19.4]} 37. Rc7 {[%clk 0:00:14.1]}
37... Ra5 {[%clk 0:01:18.2]} 38. Rc6 {[%clk 0:00:12.9]} 38... Ke5 {[%clk
0:01:18.1]} 39. Rc8 {[%clk 0:00:14.4]} 39... f5 {[%clk 0:01:19.2]} 40. Re8+
{[%clk 0:00:15.3]} 40... Kf6 {[%clk 0:01:20.3]} 41. Rf8+ {[%clk 0:00:16.4]}
41... Ke6 {[%clk 0:01:20.6]} 42. Re8+ {[%clk 0:00:17.5]} 42... Kf7 {[%clk
0:01:20.7]} 43. Rc8 {[%clk 0:00:16.7]} 43... Ra1 {[%clk 0:01:19.9]} 44. Kf4
{[%clk 0:00:17.3]} 44... Rf1+ {[%clk 0:01:19.8]} 45. Ke3 {[%clk 0:00:16.3]}
45... Ke6 {[%clk 0:01:19.4]} 46. Rc6+ {[%clk 0:00:16.1]} 46... Ke5 {[%clk
0:01:20.2]} 47. Rxa6 {[%clk 0:00:17.9]} 47... f4+ {[%clk 0:01:21]} 48. Ke2
{[%clk 0:00:18.9]} 48... Rh1 {[%clk 0:01:21.7]} 49. Rc6 {[%clk 0:00:19.7]} 49...
Rh2+ {[%clk 0:01:22.5]} 50. Kd1 {[%clk 0:00:20.2]} 50... f3 {[%clk 0:01:24]} 51.
Rxc5+ {[%clk 0:00:21]} 51... Kf4 {[%clk 0:01:25.5]} 52. Rc8 {[%clk 0:00:17.3]}
52... Rh1+ {[%clk 0:01:23.6]} 53. Kd2 {[%clk 0:00:18.2]} 53... e3+ {[%clk
0:01:25.1]} 54. Kc2 {[%clk 0:00:18]} 54... f2 {[%clk 0:01:25.8]} 55. Rf8+ {[%clk
0:00:15.2]} 55... Ke4 {[%clk 0:01:26.9]} 56. Re8+ {[%clk 0:00:15.9]} 56... Kf3
{[%clk 0:01:28.3]} 57. Rf8+ {[%clk 0:00:16.5]} 57... Ke2 {[%clk 0:01:29.6]} 58.
c5 {[%clk 0:00:16.2]} 58... f1=Q {[%clk 0:01:29.3]} 0-1

[Event "*** Qualifier 4: Titled Tuesday 3|2 Blitz"]
[Site "Chess.com"]
[Date "2017.04.25"]
[Round "1"]
[White "LonesomeGeorge1"]
[Black "ViIIagra"]
[Result "0-1"]
[WhiteElo "2208"]
[BlackElo "2498"]
[TimeControl "180+2"]
[EndTime "13:09:05 PDT"]
[Termination "ViIIagra won by checkmate"]

1. d4 {[%clk 0:03:02]} 1... Nf6 {[%clk 0:03:00.5]} 2. Bf4 {[%clk 0:03:02.5]}
2... g6 {[%clk 0:03:01.2]} 3. Nc3 {[%clk 0:03:03.2]} 3... d5 {[%clk 0:03:01.4]}
4. e3 {[%clk 0:03:02.6]} 4... Bg7 {[%clk 0:03:01.7]} 5. h4 {[%clk 0:03:03.3]}
5... c5 {[%clk 0:02:42.6]} 6. Nb5 {[%clk 0:03:03.8]} 6... Na6 {[%clk 0:02:35.4]}
7. c3 {[%clk 0:03:04.5]} 7... cxd4 {[%clk 0:02:27]} 8. exd4 {[%clk 0:03:04.2]}
8... Bd7 {[%clk 0:02:19.5]} 9. a4 {[%clk 0:03:04.5]} 9... O-O {[%clk 0:02:15.2]}
10. h5 {[%clk 0:02:52.6]} 10... Nxh5 {[%clk 0:02:04.3]} 11. Rxh5 {[%clk
0:02:53.5]} 11... gxh5 {[%clk 0:02:06.2]} 12. Qxh5 {[%clk 0:02:54.8]} 12... f5
{[%clk 0:02:07.8]} 13. Nf3 {[%clk 0:02:48.5]} 13... Qe8 {[%clk 0:02:08.8]} 14.
Qh2 {[%clk 0:02:48.8]} 14... Rc8 {[%clk 0:02:06]} 15. Bd3 {[%clk 0:02:47.7]}
15... Rf6 {[%clk 0:01:32.7]} 16. Kd2 {[%clk 0:02:31.2]} 16... Rb6 {[%clk
0:01:28.4]} 17. Ne5 {[%clk 0:02:02.2]} 17... Bxe5 {[%clk 0:01:06.4]} 18. Bxe5
{[%clk 0:01:59]} 18... Rg6 {[%clk 0:01:07.4]} 19. Rh1 {[%clk 0:01:43.4]} 19...
Qf7 {[%clk 0:01:08.2]} 20. f3 {[%clk 0:01:15]} 20... Rf8 {[%clk 0:01:02.9]} 21.
b3 {[%clk 0:00:44]} 21... f4 {[%clk 0:00:54.3]} 22. Nxa7 {[%clk 0:00:40.3]}
22... h6 {[%clk 0:00:30.8]} 23. Bxg6 {[%clk 0:00:38.9]} 23... Qxg6 {[%clk
0:00:32.3]} 24. Qxh6 {[%clk 0:00:32.2]} 24... Qxg2+ {[%clk 0:00:28.3]} 25. Kc1
{[%clk 0:00:31.5]} 25... Bf5 {[%clk 0:00:28.4]} 26. Rh2 {[%clk 0:00:17.7]} 26...
Qg1+ {[%clk 0:00:24.1]} 27. Kd2 {[%clk 0:00:13.2]} 27... Qe3+ {[%clk 0:00:18.6]}
28. Kd1 {[%clk 0:00:14.7]} 28... Qxf3+ {[%clk 0:00:20.2]} 29. Kc1 {[%clk
0:00:15.5]} 29... Qxc3+ {[%clk 0:00:20.6]} 30. Kd1 {[%clk 0:00:17]} 30... Qf3+
{[%clk 0:00:21.9]} 31. Kc1 {[%clk 0:00:17.8]} 31... Qc3+ {[%clk 0:00:21.1]} 32.
Kd1 {[%clk 0:00:19.1]} 32... Bg4+ {[%clk 0:00:22.7]} 33. Re2 {[%clk 0:00:17.8]}
33... Bxe2+ {[%clk 0:00:23.5]} 34. Kxe2 {[%clk 0:00:18.9]} 34... Qe3+ {[%clk
0:00:25]} 35. Kd1 {[%clk 0:00:19.2]} 35... Qg1+ {[%clk 0:00:26.6]} 36. Kd2
{[%clk 0:00:18.8]} 36... Qg2+ {[%clk 0:00:27.8]} 37. Kd1 {[%clk 0:00:19.3]}
37... Qg4+ {[%clk 0:00:28.3]} 38. Kd2 {[%clk 0:00:20.3]} 38... f3 {[%clk
0:00:23.2]} 39. Nb5 {[%clk 0:00:14.2]} 39... f2 {[%clk 0:00:21.8]} 40. Qh8+
{[%clk 0:00:12.1]} 40... Kf7 {[%clk 0:00:22.7]} 41. Qh7+ {[%clk 0:00:13.6]}
41... Ke8 {[%clk 0:00:21.3]} 42. Nd6+ {[%clk 0:00:06.3]} 42... exd6 {[%clk
0:00:20]} 43. Bxd6 {[%clk 0:00:08.2]} 43... Qg5+ {[%clk 0:00:19.5]} 44. Kc2
{[%clk 0:00:08.6]} 44... f1=Q {[%clk 0:00:18.3]} 45. Qxb7 {[%clk 0:00:09.8]}
45... Qgc1# {[%clk 0:00:17.3]} 0-1

[Event "*** Qualifier 4: Titled Tuesday 3|2 Blitz"]
[Site "Chess.com"]
[Date "2017.04.25"]
[Round "1"]
[White "Yaacovn"]
[Black "Abrito99"]
[Result "1-0"]
[WhiteElo "2609"]
[BlackElo "2283"]
[TimeControl "180+2"]
[EndTime "13:09:07 PDT"]
[Termination "Yaacovn won on time"]

1. d4 {[%clk 0:03:02]} 1... Nf6 {[%clk 0:02:59.3]} 2. Nf3 {[%clk 0:03:03.4]}
2... b6 {[%clk 0:02:58.6]} 3. e3 {[%clk 0:03:04.8]} 3... Bb7 {[%clk 0:02:59.4]}
4. Be2 {[%clk 0:03:06.5]} 4... e6 {[%clk 0:03:00.1]} 5. O-O {[%clk 0:03:08.1]}
5... Be7 {[%clk 0:03:01.1]} 6. b3 {[%clk 0:03:09.7]} 6... O-O {[%clk 0:03:01.8]}
7. Bb2 {[%clk 0:03:11.3]} 7... d6 {[%clk 0:03:00.5]} 8. c4 {[%clk 0:03:12.8]}
8... Nbd7 {[%clk 0:03:00.4]} 9. Nc3 {[%clk 0:03:14.2]} 9... Ne4 {[%clk
0:03:00.8]} 10. Nxe4 {[%clk 0:03:14.7]} 10... Bxe4 {[%clk 0:03:01.2]} 11. Nd2
{[%clk 0:03:16.6]} 11... Bb7 {[%clk 0:03:00.3]} 12. Bf3 {[%clk 0:03:18.1]} 12...
c6 {[%clk 0:03:00.7]} 13. Rc1 {[%clk 0:03:18.4]} 13... d5 {[%clk 0:03:01]} 14.
Qc2 {[%clk 0:03:18.3]} 14... f5 {[%clk 0:03:00]} 15. g3 {[%clk 0:03:18.6]} 15...
Rc8 {[%clk 0:02:58.5]} 16. Bg2 {[%clk 0:03:19.8]} 16... Nf6 {[%clk 0:02:58.8]}
17. Nf3 {[%clk 0:03:20.2]} 17... Ne4 {[%clk 0:02:27.5]} 18. Ne5 {[%clk
0:03:20.8]} 18... Bd6 {[%clk 0:02:20.1]} 19. f3 {[%clk 0:03:19.7]} 19... Nf6
{[%clk 0:02:18.8]} 20. Rfd1 {[%clk 0:03:20]} 20... Qe7 {[%clk 0:02:13.8]} 21. c5
{[%clk 0:03:16.3]} 21... Bb8 {[%clk 0:02:07]} 22. b4 {[%clk 0:03:16.2]} 22...
Nd7 {[%clk 0:01:44.3]} 23. f4 {[%clk 0:03:12.3]} 23... Nxe5 {[%clk 0:01:44.4]}
24. dxe5 {[%clk 0:03:12.1]} 24... b5 {[%clk 0:01:44]} 25. a4 {[%clk 0:03:12.8]}
25... a6 {[%clk 0:01:28.4]} 26. Bd4 {[%clk 0:03:13]} 26... Bc7 {[%clk
0:01:26.8]} 27. Ra1 {[%clk 0:03:13.2]} 27... Ra8 {[%clk 0:01:27]} 28. Ra2 {[%clk
0:03:14]} 28... Qd7 {[%clk 0:01:19.4]} 29. Rda1 {[%clk 0:03:14.8]} 29... bxa4
{[%clk 0:01:19.7]} 30. Rxa4 {[%clk 0:03:13.3]} 30... Rfb8 {[%clk 0:01:19.8]} 31.
Bf1 {[%clk 0:03:14.1]} 31... Bc8 {[%clk 0:01:19.8]} 32. Qc3 {[%clk 0:03:11.7]}
32... Bd8 {[%clk 0:01:04.3]} 33. Bxa6 {[%clk 0:03:09.7]} 33... Bxa6 {[%clk
0:01:01.5]} 34. Rxa6 {[%clk 0:03:11.6]} 34... Qb7 {[%clk 0:01:02.4]} 35. Rxa8
{[%clk 0:03:01.7]} 35... Rxa8 {[%clk 0:01:02.9]} 36. Rxa8 {[%clk 0:03:02.5]}
36... Qxa8 {[%clk 0:01:03.6]} 37. Qa1 {[%clk 0:02:56.6]} 37... Qb7 {[%clk
0:01:00.2]} 38. Qa4 {[%clk 0:02:57.2]} 38... Kf7 {[%clk 0:00:55.3]} 39. h3
{[%clk 0:02:57.4]} 39... g5 {[%clk 0:00:47.1]} 40. Kg2 {[%clk 0:02:58.7]} 40...
h6 {[%clk 0:00:45.3]} 41. Kf3 {[%clk 0:02:59.6]} 41... Kg6 {[%clk 0:00:45.2]}
42. g4 {[%clk 0:03:00.6]} 42... h5 {[%clk 0:00:44.9]} 43. gxf5+ {[%clk
0:03:00.5]} 43... exf5 {[%clk 0:00:46]} 44. fxg5 {[%clk 0:03:00.2]} 44... Bxg5
{[%clk 0:00:46.6]} 45. Ke2 {[%clk 0:02:59.9]} 45... Bd8 {[%clk 0:00:46.3]} 46.
Kd3 {[%clk 0:03:00.2]} 46... Bc7 {[%clk 0:00:31.6]} 47. Kc3 {[%clk 0:03:01]}
47... Bd8 {[%clk 0:00:31.7]} 48. Kc2 {[%clk 0:02:53.1]} 48... Be7 {[%clk
0:00:27]} 49. Kd2 {[%clk 0:02:51.4]} 49... Bd8 {[%clk 0:00:18.5]} 50. Bc3 {[%clk
0:02:52.4]} 50... Kg5 {[%clk 0:00:19.7]} 51. Qd1 {[%clk 0:02:52.8]} 51... Kg6
{[%clk 0:00:20.5]} 52. Qg1+ {[%clk 0:02:53.4]} 52... Kh7 {[%clk 0:00:21.8]} 53.
Qd1 {[%clk 0:02:52]} 53... Qf7 {[%clk 0:00:22.6]} 54. Qf3 {[%clk 0:02:52.7]}
54... Qg6 {[%clk 0:00:23.7]} 55. Bd4 {[%clk 0:02:51.8]} 55... Be7 {[%clk
0:00:24.4]} 56. Kc3 {[%clk 0:02:52.9]} 56... Bh4 {[%clk 0:00:20]} 57. Kb2 {[%clk
0:02:49.4]} 57... Be1 {[%clk 0:00:20.7]} 58. Kb3 {[%clk 0:02:49.3]} 58... f4
{[%clk 0:00:21.8]} 59. Qd1 {[%clk 0:02:43.1]} 59... Qg3 {[%clk 0:00:19.1]} 60.
e6 {[%clk 0:02:35.2]} 60... Qxh3 {[%clk 0:00:14.1]} 61. e7 {[%clk 0:02:31.3]}
61... fxe3 {[%clk 0:00:11.1]} 62. Qd3+ {[%clk 0:02:31.8]} 62... Kh6 {[%clk
0:00:09.7]} 63. e8=Q {[%clk 0:02:32.4]} 1-0

[Event "*** Qualifier 4: Titled Tuesday 3|2 Blitz"]
[Site "Chess.com"]
[Date "2017.04.25"]
[Round "1"]
[White "Makalexa"]
[Black "dhanushbharadwaj"]
[Result "1-0"]
[WhiteElo "2175"]
[BlackElo "2456"]
[TimeControl "180+2"]
[EndTime "13:09:19 PDT"]
[Termination "Makalexa won by resignation"]

1. e4 {[%clk 0:02:52.6]} 1... c6 {[%clk 0:02:59]} 2. d4 {[%clk 0:02:53.1]} 2...
d5 {[%clk 0:02:59.4]} 3. Nc3 {[%clk 0:02:55]} 3... dxe4 {[%clk 0:02:59.9]} 4.
Nxe4 {[%clk 0:02:56.9]} 4... Bf5 {[%clk 0:03:00.2]} 5. Ng3 {[%clk 0:02:57.7]}
5... Bg6 {[%clk 0:02:58.7]} 6. Nf3 {[%clk 0:02:59]} 6... Nd7 {[%clk 0:02:56.2]}
7. Bd3 {[%clk 0:03:00.4]} 7... Bxd3 {[%clk 0:02:53.7]} 8. Qxd3 {[%clk
0:03:02.3]} 8... e6 {[%clk 0:02:53.8]} 9. O-O {[%clk 0:02:57.6]} 9... Ngf6
{[%clk 0:02:54.2]} 10. Re1 {[%clk 0:02:50.4]} 10... Be7 {[%clk 0:02:54.2]} 11.
Bf4 {[%clk 0:02:50]} 11... O-O {[%clk 0:02:53.6]} 12. Rad1 {[%clk 0:02:42.7]}
12... Qa5 {[%clk 0:02:46.6]} 13. a3 {[%clk 0:02:30.5]} 13... Rfd8 {[%clk
0:02:30.5]} 14. c4 {[%clk 0:02:20.1]} 14... Nh5 {[%clk 0:02:17.3]} 15. Be5
{[%clk 0:02:03.3]} 15... Nxe5 {[%clk 0:02:14.9]} 16. Rxe5 {[%clk 0:02:03.6]}
16... Qb6 {[%clk 0:01:23.7]} 17. Rxh5 {[%clk 0:01:58.6]} 17... g6 {[%clk
0:01:21.9]} 18. Re5 {[%clk 0:01:38]} 18... Qxb2 {[%clk 0:01:21.8]} 19. Ne4
{[%clk 0:01:32]} 19... Qxa3 {[%clk 0:01:21.4]} 20. Neg5 {[%clk 0:01:27.1]} 20...
Qxd3 {[%clk 0:01:20.2]} 21. Rxd3 {[%clk 0:01:27.7]} 21... Bxg5 {[%clk 0:01:19]}
22. Rxg5 {[%clk 0:01:28.1]} 22... Rd6 {[%clk 0:01:19.7]} 23. h4 {[%clk
0:01:21.9]} 23... Rad8 {[%clk 0:01:19.3]} 24. Ra3 {[%clk 0:01:22.3]} 24... a6
{[%clk 0:01:20]} 25. c5 {[%clk 0:01:17.4]} 25... R6d7 {[%clk 0:01:20.3]} 26. h5
{[%clk 0:01:17.5]} 26... Kg7 {[%clk 0:01:20.9]} 27. hxg6 {[%clk 0:01:16.6]}
27... hxg6 {[%clk 0:01:22.8]} 28. Kf1 {[%clk 0:01:17.5]} 28... Kf6 {[%clk
0:01:20.2]} 29. Rg3 {[%clk 0:01:06.1]} 29... Rh8 {[%clk 0:01:16.1]} 30. Ke2
{[%clk 0:01:06.5]} 30... Rh1 {[%clk 0:01:16]} 31. Rb3 {[%clk 0:01:05.8]} 31...
Ra1 {[%clk 0:01:13.9]} 32. Ke3 {[%clk 0:01:06.3]} 32... Rd1 {[%clk 0:01:10.9]}
33. Rh3 {[%clk 0:01:05.6]} 33... a5 {[%clk 0:01:09.6]} 34. Rh8 {[%clk
0:01:04.8]} 34... Ra1 {[%clk 0:01:03.5]} 35. Rb8 {[%clk 0:01:03.1]} 35... a4
{[%clk 0:00:58.9]} 36. R3xb7 {[%clk 0:01:04.3]} 36... Rxb7 {[%clk 0:00:54.7]}
37. Rxb7 {[%clk 0:01:06.2]} 37... a3 {[%clk 0:00:56.6]} 38. Kf4 {[%clk
0:01:02.7]} 38... g5+ {[%clk 0:00:39.5]} 39. Nxg5 {[%clk 0:01:00.4]} 39... a2
{[%clk 0:00:28.6]} 40. Ra7 {[%clk 0:01:00.7]} 40... Kg6 {[%clk 0:00:24.5]} 41.
Nf3 {[%clk 0:00:53.6]} 41... f6 {[%clk 0:00:25.5]} 42. g4 {[%clk 0:00:51.1]}
42... Kh6 {[%clk 0:00:24]} 43. g5+ {[%clk 0:00:44.3]} 43... fxg5+ {[%clk
0:00:23.7]} 44. Nxg5 {[%clk 0:00:45.5]} 44... Rg1 {[%clk 0:00:23.9]} 45. Nf7+
{[%clk 0:00:40.1]} 45... Kh5 {[%clk 0:00:11.4]} 46. Rxa2 {[%clk 0:00:39.1]}
46... Rg4+ {[%clk 0:00:09.3]} 47. Ke5 {[%clk 0:00:39.8]} 47... Rg7 {[%clk
0:00:09.3]} 48. Nd6 {[%clk 0:00:39.1]} 48... Rg5+ {[%clk 0:00:09.8]} 49. Kxe6
{[%clk 0:00:39.7]} 49... Rg2 {[%clk 0:00:09.6]} 50. Nf5 {[%clk 0:00:39]} 50...
Kg5 {[%clk 0:00:10.1]} 51. f4+ {[%clk 0:00:39.1]} 51... Kxf4 {[%clk 0:00:07.6]}
52. Rxg2 {[%clk 0:00:38.4]} 1-0

[Event "*** Qualifier 4: Titled Tuesday 3|2 Blitz"]
[Site "Chess.com"]
[Date "2017.04.25"]
[Round "1"]
[White "Iball95"]
[Black "Schemato"]
[Result "1-0"]
[WhiteElo "2533"]
[BlackElo "2247"]
[TimeControl "180+2"]
[EndTime "13:09:27 PDT"]
[Termination "Iball95 won by resignation"]

1. e4 {[%clk 0:03:02]} 1... e6 {[%clk 0:03:00.4]} 2. d4 {[%clk 0:02:59.6]} 2...
d5 {[%clk 0:03:01.4]} 3. Nd2 {[%clk 0:03:00.9]} 3... Be7 {[%clk 0:03:02]} 4.
Ngf3 {[%clk 0:02:56.7]} 4... Nf6 {[%clk 0:03:01.6]} 5. Bd3 {[%clk 0:02:57.2]}
5... c5 {[%clk 0:03:01.6]} 6. exd5 {[%clk 0:02:52.6]} 6... Qxd5 {[%clk
0:03:00.3]} 7. dxc5 {[%clk 0:02:53.3]} 7... O-O {[%clk 0:02:59.1]} 8. O-O {[%clk
0:02:54.5]} 8... Nbd7 {[%clk 0:02:58.2]} 9. Nb3 {[%clk 0:02:48.3]} 9... Nxc5
{[%clk 0:02:56]} 10. Nxc5 {[%clk 0:02:49.4]} 10... Qxc5 {[%clk 0:02:52.4]} 11.
Be3 {[%clk 0:02:49.8]} 11... Qh5 {[%clk 0:02:52]} 12. Nd4 {[%clk 0:02:02.6]}
12... Qxd1 {[%clk 0:02:50.4]} 13. Raxd1 {[%clk 0:02:04.5]} 13... Bd7 {[%clk
0:02:43.3]} 14. Rfe1 {[%clk 0:02:00.7]} 14... Rfd8 {[%clk 0:02:42.8]} 15. c3
{[%clk 0:02:00.6]} 15... Nd5 {[%clk 0:02:33.3]} 16. Bc1 {[%clk 0:01:59.6]} 16...
Ba4 {[%clk 0:02:25.5]} 17. Nb3 {[%clk 0:01:50.2]} 17... Rd7 {[%clk 0:02:01.7]}
18. Be4 {[%clk 0:01:30.7]} 18... Rad8 {[%clk 0:02:00.9]} 19. g3 {[%clk
0:01:29.9]} 19... b6 {[%clk 0:01:54]} 20. h4 {[%clk 0:01:28.9]} 20... h6 {[%clk
0:01:53.8]} 21. Rd4 {[%clk 0:01:12.1]} 21... Bxb3 {[%clk 0:01:40.3]} 22. axb3
{[%clk 0:01:14]} 22... Nf6 {[%clk 0:01:41.5]} 23. Rxd7 {[%clk 0:01:14.3]} 23...
Rxd7 {[%clk 0:01:41.5]} 24. Bc6 {[%clk 0:01:11.2]} 24... Rd8 {[%clk 0:01:33.9]}
25. b4 {[%clk 0:01:10.8]} 25... Ng4 {[%clk 0:01:21.5]} 26. Kg2 {[%clk 0:01:02]}
26... Bf6 {[%clk 0:01:18]} 27. Bf4 {[%clk 0:00:57.5]} 27... g5 {[%clk
0:00:55.3]} 28. hxg5 {[%clk 0:00:59.4]} 28... hxg5 {[%clk 0:00:56.6]} 29. Bc1
{[%clk 0:01:00.2]} 29... Ne5 {[%clk 0:00:54.1]} 30. Bxg5 {[%clk 0:00:28.7]}
30... Bxg5 {[%clk 0:00:52.3]} 31. Rxe5 {[%clk 0:00:28.9]} 31... Bc1 {[%clk
0:00:52.4]} 32. b3 {[%clk 0:00:21.3]} 32... Bd2 {[%clk 0:00:45.1]} 33. c4 {[%clk
0:00:11.2]} 33... Bxb4 {[%clk 0:00:45.2]} 34. Rb5 {[%clk 0:00:12]} 34... Bc5
{[%clk 0:00:32]} 35. b4 {[%clk 0:00:13.1]} 35... Bd4 {[%clk 0:00:33.1]} 36. Be4
{[%clk 0:00:11.7]} 36... Rc8 {[%clk 0:00:26.6]} 37. Rg5+ {[%clk 0:00:10.6]}
37... Kf8 {[%clk 0:00:26.9]} 38. Bd3 {[%clk 0:00:11.9]} 38... Bc3 {[%clk
0:00:24.2]} 39. Rb5 {[%clk 0:00:10.4]} 39... Kg7 {[%clk 0:00:21.2]} 40. f4
{[%clk 0:00:11.3]} 40... Rd8 {[%clk 0:00:20]} 41. Be2 {[%clk 0:00:09.3]} 41...
Rd2 {[%clk 0:00:20.5]} 42. Kf3 {[%clk 0:00:10.8]} 42... Rb2 {[%clk 0:00:21.5]}
43. c5 {[%clk 0:00:09.6]} 43... Rxb4 {[%clk 0:00:17]} 44. c6 {[%clk 0:00:06.8]}
44... Rxb5 {[%clk 0:00:05.6]} 45. Bxb5 {[%clk 0:00:08.7]} 45... e5 {[%clk
0:00:05.7]} 46. c7 {[%clk 0:00:07.6]} 1-0

[Event "*** Qualifier 4: Titled Tuesday 3|2 Blitz"]
[Site "Chess.com"]
[Date "2017.04.25"]
[Round "1"]
[White "Noukii"]
[Black "AllStarShark"]
[Result "1-0"]
[WhiteElo "2639"]
[BlackElo "2299"]
[TimeControl "180+2"]
[EndTime "13:09:31 PDT"]
[Termination "Noukii won on time"]

1. d4 {[%clk 0:03:02]} 1... d5 {[%clk 0:03:00.4]} 2. c4 {[%clk 0:03:02]} 2...
dxc4 {[%clk 0:02:58.3]} 3. e3 {[%clk 0:03:02.9]} 3... e5 {[%clk 0:02:58.5]} 4.
Bxc4 {[%clk 0:03:04.4]} 4... exd4 {[%clk 0:02:59.6]} 5. exd4 {[%clk 0:03:06.3]}
5... Bd6 {[%clk 0:03:00.3]} 6. Nf3 {[%clk 0:03:07.5]} 6... Nf6 {[%clk
0:03:00.7]} 7. Qe2+ {[%clk 0:03:08.9]} 7... Qe7 {[%clk 0:03:00.9]} 8. Qxe7+
{[%clk 0:03:10]} 8... Bxe7 {[%clk 0:03:00.1]} 9. O-O {[%clk 0:03:11.2]} 9...
Nbd7 {[%clk 0:02:56.3]} 10. Nc3 {[%clk 0:03:11.1]} 10... c6 {[%clk 0:02:56.9]}
11. Re1 {[%clk 0:03:11.2]} 11... Nb6 {[%clk 0:02:57.5]} 12. Bb3 {[%clk
0:03:12.4]} 12... Nfd5 {[%clk 0:02:49.3]} 13. h3 {[%clk 0:03:09.7]} 13... Be6
{[%clk 0:02:48.8]} 14. Ne4 {[%clk 0:03:08.6]} 14... h6 {[%clk 0:02:45.9]} 15.
Bd2 {[%clk 0:02:41]} 15... O-O-O {[%clk 0:02:42.5]} 16. a4 {[%clk 0:02:36.9]}
16... Rhe8 {[%clk 0:02:36.6]} 17. a5 {[%clk 0:02:37.8]} 17... Nd7 {[%clk
0:02:35.4]} 18. a6 {[%clk 0:02:38.8]} 18... N7f6 {[%clk 0:02:31.4]} 19. axb7+
{[%clk 0:02:34.1]} 19... Kxb7 {[%clk 0:02:33.3]} 20. Nc5+ {[%clk 0:02:22.8]}
20... Bxc5 {[%clk 0:02:29.9]} 21. dxc5 {[%clk 0:02:24.7]} 21... Nc7 {[%clk
0:02:22.9]} 22. Ba4 {[%clk 0:02:20.4]} 22... Bd5 {[%clk 0:02:17.6]} 23. Rxe8
{[%clk 0:02:17.9]} 23... Nfxe8 {[%clk 0:02:07.7]} 24. Bc3 {[%clk 0:01:57.1]}
24... Bxf3 {[%clk 0:02:03.4]} 25. gxf3 {[%clk 0:01:58.1]} 25... Ne6 {[%clk
0:02:02]} 26. Bb3 {[%clk 0:01:50.9]} 26... N8c7 {[%clk 0:01:56.3]} 27. Rc1
{[%clk 0:01:23.4]} 27... Nd5 {[%clk 0:01:42.8]} 28. Be5 {[%clk 0:01:22.9]} 28...
Ndf4 {[%clk 0:01:13.9]} 29. Rc4 {[%clk 0:01:06.3]} 29... Nxh3+ {[%clk
0:01:08.2]} 30. Kf1 {[%clk 0:00:54.2]} 30... Nhg5 {[%clk 0:01:05.3]} 31. Rb4+
{[%clk 0:00:54]} 31... Ka8 {[%clk 0:01:06.5]} 32. Ba4 {[%clk 0:00:44.8]} 32...
Rc8 {[%clk 0:01:07.1]} 33. f4 {[%clk 0:00:45.5]} 33... a5 {[%clk 0:00:57.1]} 34.
Rb6 {[%clk 0:00:44.4]} 34... Nxc5 {[%clk 0:00:47.9]} 35. Rxc6 {[%clk 0:00:38.3]}
35... Rxc6 {[%clk 0:00:39.1]} 36. Bxc6+ {[%clk 0:00:40.2]} 36... Ka7 {[%clk
0:00:40.4]} 37. fxg5 {[%clk 0:00:41.4]} 37... hxg5 {[%clk 0:00:38.9]} 38. Bxg7
{[%clk 0:00:42.6]} 38... Kb6 {[%clk 0:00:39.5]} 39. Bd5 {[%clk 0:00:43.3]} 39...
Kb5 {[%clk 0:00:34.1]} 40. Bxf7 {[%clk 0:00:41.2]} 40... Ne4 {[%clk 0:00:32.1]}
41. Ke2 {[%clk 0:00:40.7]} 41... Kb4 {[%clk 0:00:31.9]} 42. Ke3 {[%clk
0:00:40.3]} 42... Nd6 {[%clk 0:00:28.1]} 43. Bf8 {[%clk 0:00:41]} 43... Kc5
{[%clk 0:00:26.8]} 44. Kf3 {[%clk 0:00:41.3]} 44... a4 {[%clk 0:00:28.3]} 45.
Kg4 {[%clk 0:00:40.4]} 45... Kc6 {[%clk 0:00:27.8]} 46. Bxd6 {[%clk 0:00:41.4]}
46... Kxd6 {[%clk 0:00:28.7]} 47. Kxg5 {[%clk 0:00:42.7]} 47... Ke5 {[%clk
0:00:29]} 48. f4+ {[%clk 0:00:43.2]} 48... Kd4 {[%clk 0:00:30.1]} 49. Be8 {[%clk
0:00:44.7]} 49... Kd5 {[%clk 0:00:30]} 50. Bxa4 {[%clk 0:00:45.3]} 50... Ke6
{[%clk 0:00:31.6]} 51. Kg6 {[%clk 0:00:46.6]} 51... Ke7 {[%clk 0:00:32.7]} 52.
f5 {[%clk 0:00:47.4]} 52... Kf8 {[%clk 0:00:33.8]} 53. f6 {[%clk 0:00:48.2]}
53... Kg8 {[%clk 0:00:34.9]} 54. b4 {[%clk 0:00:49.9]} 54... Kf8 {[%clk
0:00:36.1]} 55. Bd7 {[%clk 0:00:51.6]} 55... Kg8 {[%clk 0:00:37.2]} 56. b5
{[%clk 0:00:53.3]} 56... Kf8 {[%clk 0:00:38.5]} 57. b6 {[%clk 0:00:55.2]} 57...
Kg8 {[%clk 0:00:39.6]} 58. b7 {[%clk 0:00:57.1]} 1-0